bitfinex/quotes_ETHUSD_20250425
["timestamp","ask_amount","ask_price","bid_price","bid_amount"]
[1745578429045,6.0,1771.5,1771.4,5.64525234]
[1745578429251,6.11524822,1771.5,1771.4,5.64525234]
[1745578429557,0.11524822,1771.5,1771.4,6.85599375]
[1745578429872,6.666,1771.8,1771.5,5.64485165]
[1745578430261,6.666,1771.8,1771.4,6.85571202]
[1745578430982,6.666,1771.8,1771.4,6.85572221]
[1745578431169,6.666,1771.8,1771.5,5.64492613]
[1745578431681,6.0,1772.0,1771.6,0.7944]
[1745578431880,6.0,1772.0,1771.7,5.64417203]
[1745578432084,6.0,1772.0,1771.6,6.4388639]
[1745578432410,6.0,1772.0,1771.7,5.64416146]
[1745578432580,6.0,1772.0,1771.6,6.43879432]
[1745578432744,1.40282942,1771.9,1771.3,0.8133]
[1745578432946,1.40282942,1771.9,1771.4,5.64498829]
[1745578433146,1.71528399,1771.9,1771.4,5.64502835]
[1745578433545,2.13125407,1771.9,1771.5,5.64492943]
[1745578433757,2.13125407,1771.9,1771.5,5.64476457]
[1745578433981,2.13125407,1771.9,1771.5,5.64471682]
[1745578434147,2.13125407,1771.9,1771.5,5.64470448]
[1745578434753,2.13125407,1771.9,1771.5,6.7736852]
[1745578435883,8.13125407,1771.9,1771.5,6.7736852]
[1745578436181,7.8187995,1771.9,1771.5,6.7736852]
[1745578437071,7.8187995,1771.9,1771.5,5.64470448]
[1745578437952,7.8187995,1771.9,1771.6,5.64445013]
[1745578438288,3.666,1771.7,1771.2,5.64557711]
[1745578438478,6.0,1771.6,1771.1,0.7519]
[1745578438667,6.0,1771.6,1771.2,5.6458121]
[1745578438861,6.0,1771.6,1771.1,12.0439185]
[1745578439060,6.0,1771.6,1771.1,7.60230017]
[1745578439485,6.0,1771.6,1771.2,5.64586984]
[1745578440285,6.0,1771.6,1771.1,7.60230017]
[1745578441492,6.0,1771.6,1771.2,5.64557159]
[1745578441658,9.666,1771.7,1771.3,5.64548071]
[1745578442065,0.11233457,1771.6,1771.2,5.64557159]
[1745578442266,0.11233457,1771.6,1771.3,0.56455716]
[1745578442556,0.11195889,1771.5,1771.3,0.56455716]
[1745578442765,9.666,1771.7,1771.3,0.56455716]
[1745578442966,0.11233457,1771.6,1771.3,0.56455716]
[1745578443162,9.666,1771.7,1771.3,0.56455716]
[1745578443490,0.11233457,1771.6,1771.2,5.64583855]
[1745578443664,0.11233457,1771.6,1771.1,13.2483666]
[1745578443854,9.666,1771.7,1771.2,5.64578837]
[1745578444053,0.11195889,1771.5,1771.2,5.64578837]
[1745578444280,0.11233457,1771.6,1771.2,5.64578837]
[1745578444487,0.11158318,1771.4,1771.2,6.97059828]
[1745578444791,6.666,1771.7,1771.4,5.64524913]
[1745578445181,0.666,1771.7,1771.4,5.64524913]
[1745578445861,6.0,1771.8,1771.4,5.64524913]
[1745578445862,6.0,1771.8,1771.4,0.7598]
[1745578446452,6.0,1771.8,1771.3,10.68135579]
[1745578446683,6.0,1771.8,1771.3,12.44654226]
[1745578446858,6.0,1771.8,1771.4,5.64524592]
[1745578447280,11.64407287,1771.8,1771.3,6.80118647]
[1745578447451,12.38090229,1771.8,1771.3,6.80118647]
[1745578447654,0.666,1771.7,1771.3,6.80118647]
[1745578447892,0.666,1771.7,1771.3,12.44673951]
[1745578448384,0.97839667,1771.7,1771.3,12.44673951]
[1745578448894,0.31239667,1771.7,1771.4,6.88982633]
[1745578449258,0.31239667,1771.7,1771.5,5.644886]
[1745578449494,6.0,1771.8,1771.5,6.412686]
[1745578450486,7.08197008,1771.9,1771.5,6.412686]
[1745578451088,7.08197008,1771.9,1771.5,6.41268056]
[1745578451263,7.08197008,1771.9,1771.5,2.09803896]
[1745578452677,7.08197008,1771.9,1771.4,6.88986124]
[1745578452678,0.31277515,1771.8,1771.4,1.24467395]
[1745578452867,0.31277515,1771.8,1771.3,11.459154]
[1745578453264,0.666,1771.7,1771.3,5.036]
[1745578453972,0.97877515,1771.7,1771.3,10.68156103]
[1745578454969,0.666,1771.7,1771.3,16.32695372]
[1745578455193,0.666,1771.7,1771.4,5.64515955]
[1745578455401,0.666,1771.7,1771.3,12.31408806]
[1745578455579,0.97877515,1771.8,1771.4,0.8227]
[1745578456100,0.97877515,1771.8,1771.3,7.2780455]
[1745578456101,6.62275821,1771.8,1771.3,8.0305455]
[1745578456301,6.0,1771.7,1771.3,8.0305455]
[1745578456463,6.0,1771.7,1771.3,2.38519537]
[1745578456802,6.0,1771.7,1771.2,5.64585889]
[1745578456968,0.31277515,1771.6,1771.2,5.64585889]
[1745578457669,6.0,1771.7,1771.2,5.64585889]
[1745578459710,6.0,1771.7,1771.2,5.64574646]
[1745578460073,0.31353529,1771.6,1771.2,5.64574646]
[1745578460373,0.31353529,1771.6,1771.3,0.56457465]
[1745578460879,0.31353529,1771.6,1771.4,5.64514341]
[1745578461080,6.0,1771.7,1771.4,5.64514341]
[1745578461081,6.0,1771.7,1771.6,5.64461503]
[1745578461282,6.0,1771.7,1771.4,11.47051411]
[1745578461475,6.0,1771.7,1771.5,1.14705141]
[1745578461681,6.0,1771.7,1771.5,6.79187981]
[1745578462204,6.41597008,1771.9,1771.5,6.79187981]
[1745578462436,6.0,1771.9,1771.5,6.79187981]
[1745578463203,0.31367258,1771.8,1771.5,6.79187981]
[1745578463404,0.31367258,1771.8,1771.6,0.67918798]
[1745578464266,0.31367258,1771.7,1771.6,0.67918798]
[1745578465574,0.31367258,1771.8,1771.6,6.32371884]
[1745578465775,0.31367258,1771.8,1771.6,0.67918798]
[1745578466390,0.97967258,1771.8,1771.4,17.11552126]
[1745578466696,0.97967258,1771.8,1771.5,5.64489368]
[1745578467097,0.97967258,1771.8,1771.4,11.47044996]
[1745578467098,0.31367258,1771.7,1771.4,17.115475]
[1745578467286,0.31367258,1771.7,1771.4,10.68019225]
[1745578467488,0.31367258,1771.7,1771.4,10.68005674]
[1745578467687,0.31367258,1771.7,1771.5,6.71278382]
[1745578467919,0.31367258,1771.6,1771.5,6.71278382]
[1745578468785,0.31367258,1771.7,1771.5,6.71278382]
[1745578469718,0.666,1771.8,1771.5,6.71278382]
[1745578470520,0.666,1771.8,1771.5,1.06800567]
[1745578470690,0.666,1771.8,1771.4,10.68003764]
[1745578470891,0.666,1771.8,1771.4,10.68002633]
[1745578471087,0.31362756,1771.7,1771.5,5.64492822]
[1745578471718,0.31362756,1771.6,1771.4,10.68002633]
[1745578471894,0.31362756,1771.6,1771.4,5.035]
[1745578472086,0.31362756,1771.6,1771.4,11.8046254]
[1745578472690,0.666,1771.8,1771.4,11.8046254]
[1745578473016,0.666,1771.8,1771.4,5.035]
[1745578473615,0.666,1771.8,1771.5,5.64480614]
[1745578474119,0.31366963,1771.7,1771.5,5.64480614]
[1745578474919,0.31366963,1771.6,1771.5,5.64480614]
[1745578475090,0.31366963,1771.6,1771.4,5.035]
[1745578475297,0.31366963,1771.6,1770.7,16.938]
[1745578475298,5.64534432,1771.4,1770.9,0.8079]
[1745578475537,7.04818265,1771.2,1770.6,5.64764965]
[1745578475691,0.31366963,1771.1,1770.7,5.64746224]
[1745578475997,0.31366963,1771.1,1770.6,11.29524523]
[1745578476205,0.31366963,1771.1,1770.7,5.64744662]
[1745578476429,0.31366963,1771.0,1770.7,6.77695084]
[1745578477016,0.31366963,1771.0,1770.7,6.77675066]
[1745578477493,0.31366963,1770.9,1770.7,6.77675066]
[1745578478031,0.31366963,1771.0,1770.7,6.77675066]
[1745578478635,0.31366963,1771.0,1770.7,1.12950422]
[1745578479414,0.31366963,1771.0,1770.7,6.77697497]
[1745578479744,0.31366963,1771.0,1770.7,1.12950422]
[1745578480046,0.31366963,1771.0,1770.7,6.77697448]
[1745578480921,6.41893905,1771.1,1770.7,6.77697448]
[1745578481842,0.666,1771.0,1770.7,1.12950422]
[1745578483120,0.666,1771.0,1770.7,6.77679523]
[1745578483741,0.666,1771.0,1770.8,0.67767952]
[1745578483943,6.41893905,1771.1,1770.8,6.32471599]
[1745578484243,6.0,1771.1,1770.9,5.64674893]
[1745578485098,6.0,1771.1,1770.8,7.07603196]
[1745578485748,6.666,1771.2,1770.8,1.42907952]
[1745578486115,6.666,1771.2,1770.8,7.07606714]
[1745578486447,6.666,1771.2,1770.8,7.07612417]
[1745578487354,6.666,1771.2,1770.8,7.07606609]
[1745578487648,7.07933445,1771.2,1770.8,7.07606609]
[1745578487849,7.07933445,1771.2,1770.8,12.72304113]
[1745578488343,7.07933445,1771.2,1770.8,7.07605456]
[1745578489042,7.07933445,1771.2,1770.8,12.72300458]
[1745578489245,7.07933445,1771.2,1770.8,7.07602954]
[1745578489430,7.07933445,1771.2,1770.8,7.07601716]
[1745578489812,7.07933445,1771.2,1770.8,12.72297936]
[1745578490012,7.07933445,1771.2,1770.8,7.07601716]
[1745578490214,7.07933445,1771.2,1770.9,5.64682232]
[1745578491351,7.07933445,1771.2,1770.8,12.7229811]
[1745578491552,7.07933445,1771.2,1770.9,5.64683094]
[1745578494333,0.666,1771.1,1770.7,11.29465876]
[1745578494521,0.97813718,1771.1,1770.7,5.64728498]
[1745578497075,0.97813718,1771.1,1770.7,5.6472825]
[1745578497359,6.97813718,1771.1,1770.7,5.6472825]
[1745578497733,6.666,1771.1,1770.7,5.6472825]
[1745578498062,6.666,1771.1,1770.7,7.28026435]
[1745578498763,6.666,1771.1,1770.7,12.92753833]
[1745578498960,6.666,1771.1,1770.7,12.92752441]
[1745578499257,6.666,1771.1,1770.7,7.28025043]
[1745578499458,6.666,1771.1,1770.7,12.92751863]
[1745578499646,6.666,1771.1,1770.8,5.64707649]
[1745578500025,6.666,1771.1,1770.7,7.28025043]
[1745578501526,0.31259769,1771.0,1770.7,7.28025043]
[1745578502954,0.31259769,1771.0,1770.8,12.02191885]
[1745578503121,0.31259769,1771.0,1770.9,5.64684623]
[1745578504141,6.0,1771.1,1771.0,5.64652738]
[1745578505052,6.3134002,1771.1,1771.0,5.64652738]
[1745578505262,6.3134002,1771.1,1770.9,11.29356434]
[1745578505454,6.3134002,1771.1,1770.9,12.57393301]
[1745578505770,6.3134002,1771.1,1770.9,6.9272149]
[1745578506154,6.3134002,1771.1,1770.9,12.57387106]
[1745578506355,6.0,1771.1,1770.9,12.57387106]
[1745578506552,6.0,1771.1,1771.0,5.64652738]
[1745578506774,6.0,1771.1,1770.9,12.57385198]
[1745578507177,6.0,1771.1,1770.9,6.9272149]
[1745578507345,6.0,1771.1,1770.9,12.57383913]
[1745578507541,6.0,1771.1,1770.9,6.92721317]
[1745578507771,6.0,1771.1,1771.0,5.64652738]
[1745578508352,6.31349781,1771.1,1771.0,5.64652738]
[1745578508872,0.31349781,1771.1,1771.0,8.40628052]
[1745578509070,0.31349781,1771.1,1771.0,7.67010144]
[1745578509372,6.0,1771.4,1771.2,5.6458625]
[1745578509563,0.666,1771.3,1771.0,0.7662]
[1745578509753,0.666,1771.3,1770.8,6.4761344]
[1745578509957,0.31335477,1771.2,1770.8,6.4761344]
[1745578510152,0.31335477,1771.2,1770.7,5.64725693]
[1745578510679,0.31335477,1771.2,1770.8,5.6471487]
[1745578510989,1.09835477,1771.1,1770.8,5.64695716]
[1745578511196,1.83453385,1771.1,1770.6,10.68263323]
[1745578511347,1.83453385,1771.1,1770.6,16.33026971]
[1745578511547,7.83453385,1771.1,1770.6,10.68263323]
[1745578511742,0.31335477,1771.0,1770.6,10.68263323]
[1745578512192,0.31335477,1771.0,1770.4,0.363709]
[1745578512193,6.39985557,1770.6,1770.4,0.363709]
[1745578512350,0.31335477,1770.5,1770.4,0.363709]
[1745578514653,0.73556011,1770.5,1770.4,0.363709]
[1745578514872,0.31335477,1770.5,1770.4,0.363709]
[1745578515382,1.06535477,1770.6,1770.4,0.363709]
[1745578515784,0.7507,1770.5,1770.4,0.363709]
[1745578515946,7.06405477,1770.6,1770.4,0.363709]
[1745578516152,6.7507,1770.6,1770.4,0.363709]
[1745578517666,7.16837369,1770.6,1770.4,0.363709]
[1745578518293,8.18521106,1770.6,1770.4,0.363709]
[1745578518697,5.80532188,1771.4,1770.9,0.7611]
[1745578518876,5.80532188,1771.6,1771.0,8.90041569]
[1745578519064,3.0,1771.5,1771.1,5.64617594]
[1745578519266,3.0,1771.5,1771.0,5.64623757]
[1745578519476,3.0,1771.5,1771.1,5.64610101]
[1745578519674,3.0,1771.5,1771.2,5.64575754]
[1745578519969,3.31255247,1771.5,1771.1,5.64604844]
[1745578520272,0.31255247,1771.5,1771.2,0.8063]
[1745578520478,0.31255247,1771.5,1771.3,5.64539702]
[1745578520668,1.10605247,1771.7,1771.4,5.64509699]
[1745578520863,0.31255247,1771.7,1771.5,5.64481733]
[1745578521375,0.31255247,1771.7,1771.6,5.64461503]
[1745578521699,5.80532188,1771.8,1771.7,5.64429643]
[1745578521895,6.61122188,1772.1,1771.9,5.64353135]
[1745578522096,0.8059,1772.1,1771.9,5.64353135]
[1745578522396,3.0,1772.2,1771.9,5.64353135]
[1745578522597,3.0,1772.2,1771.7,5.64413884]
[1745578522783,6.74994359,1772.1,1771.5,5.64480077]
[1745578523086,12.55526547,1772.1,1771.5,5.64480077]
[1745578523299,6.91222188,1772.1,1771.5,5.64470117]
[1745578523466,0.7678,1771.9,1771.4,5.64512095]
[1745578524584,0.7678,1771.9,1771.3,5.8178]
[1745578524772,0.7678,1771.9,1771.5,5.64475401]
[1745578525900,0.7678,1771.9,1771.4,5.64510825]
[1745578526097,0.7678,1771.9,1771.5,5.64478592]
[1745578526397,1.1757807,1771.9,1771.5,5.64478592]
[1745578526778,5.80532188,1771.8,1771.5,5.64478592]
[1745578527391,5.80532188,1771.8,1771.6,5.64439875]
[1745578528181,5.80532188,1771.8,1771.7,5.64429643]
[1745578528382,5.80532188,1771.8,1771.6,5.64448024]
[1745578528578,5.80532188,1771.8,1771.6,11.28893202]
[1745578528795,5.80532188,1771.8,1771.6,5.64445178]
[1745578529671,5.80532188,1771.8,1771.6,5.64441927]
[1745578529983,5.80532188,1771.8,1771.7,5.64429643]
[1745578530405,5.80532188,1771.8,1771.6,5.64439474]
[1745578530750,5.80532188,1771.8,1771.6,11.28877813]
[1745578531048,5.80532188,1771.8,1771.6,5.64440672]
[1745578531541,5.80532188,1771.8,1771.6,11.28881344]
[1745578531676,5.80532188,1771.8,1771.7,5.64429643]
[1745578532080,5.80532188,1771.8,1771.6,5.64440672]
[1745578532364,5.80532188,1771.8,1771.6,11.28881459]
[1745578532804,5.80532188,1771.8,1771.6,5.64440672]
[1745578532982,5.80532188,1771.8,1771.6,5.64439036]
[1745578533596,5.80532188,1771.8,1771.6,5.64438742]
[1745578534608,5.80532188,1771.8,1771.7,5.64429643]
[1745578542819,5.80532188,1771.8,1771.7,6.85214481]
[1745578544135,5.80532188,1771.8,1771.7,7.65994481]
[1745578544418,5.80532188,1772.2,1772.0,5.64309344]
[1745578545042,6.56522188,1772.5,1772.1,5.64291284]
[1745578545227,7.22174407,1772.5,1772.1,5.64291284]
[1745578545403,0.7414,1772.4,1771.8,7.1738563]
[1745578545722,3.7414,1772.4,1771.9,5.64344448]
[1745578546112,8.64213708,1772.4,1771.8,6.43758376]
[1745578546307,8.64213708,1772.4,1771.7,12.69784928]
[1745578546490,1.17649996,1772.3,1771.9,5.64365898]
[1745578546894,0.31228625,1772.3,1771.9,5.64349422]
[1745578547096,3.31228625,1772.4,1771.9,5.64349422]
[1745578547340,3.72980206,1772.4,1771.9,5.64349422]
[1745578548641,0.7823,1772.3,1771.9,5.64349422]
[1745578548934,0.31228625,1772.2,1771.9,5.64349422]
[1745578549524,0.31228625,1772.2,1772.0,11.28634133]
[1745578549727,0.31228625,1772.2,1772.1,5.6430224]
[1745578550807,0.31228625,1772.4,1772.3,5.6423856]
[1745578551015,0.31228625,1772.4,1772.3,6.4016856]
[1745578551698,0.31228625,1772.6,1772.5,5.64174894]
[1745578552946,0.31228625,1772.7,1772.4,5.64184662]
[1745578554627,0.31228625,1772.7,1772.5,5.6417326]
[1745578555534,0.31228625,1772.7,1772.4,11.28380571]
[1745578555734,0.31228625,1772.7,1772.4,5.64184662]
[1745578555944,0.31232883,1772.7,1772.4,11.28368369]
[1745578556162,0.31232883,1772.7,1772.4,5.64183707]
[1745578556465,0.31232883,1772.7,1772.5,5.64172172]
[1745578557760,0.31232883,1772.7,1772.4,11.28371014]
[1745578557939,0.31232883,1772.7,1772.5,5.64169701]
[1745578558266,0.31232883,1772.7,1772.3,0.7593]
[1745578558453,0.778,1772.6,1772.2,5.64248438]
[1745578558961,0.778,1772.6,1772.3,5.6423724]
[1745578559149,0.778,1772.6,1772.2,5.64248438]
[1745578559348,0.778,1772.6,1772.2,7.34984376]
[1745578559666,0.778,1772.6,1772.3,5.64234262]
[1745578560569,0.778,1772.6,1772.2,7.34984068]
[1745578560929,0.778,1772.6,1772.3,5.64237271]
[1745578561462,0.778,1772.6,1772.2,12.99232748]
[1745578561667,0.778,1772.6,1772.3,5.64225387]
[1745578561869,0.31232883,1772.7,1772.4,0.73617908]
[1745578562173,0.31232883,1772.7,1772.5,5.64172913]
[1745578562332,3.31232883,1772.8,1772.5,5.64172913]
[1745578562523,3.31232883,1772.8,1772.4,5.64179572]
[1745578563350,0.31232883,1772.8,1772.6,5.64121192]
[1745578563550,0.31232883,1772.8,1772.7,5.64111242]
[1745578563757,0.31232883,1772.8,1772.6,0.8002]
[1745578563974,0.31232883,1772.8,1772.4,12.49097028]
[1745578564176,0.05,1772.9,1772.4,2.00736626]
[1745578564481,0.05,1772.9,1772.6,5.64126165]
[1745578564986,6.43963503,1772.8,1772.2,6.44274077]
[1745578565187,3.7988,1772.8,1772.2,6.44274077]
[1745578565497,9.43973552,1772.8,1772.2,6.44266241]
[1745578565972,0.31219076,1772.7,1772.2,12.08517052]
[1745578566176,0.31219076,1772.7,1772.3,5.64237885]
[1745578566331,6.59442188,1772.6,1772.1,5.7792]
[1745578566669,12.23594332,1772.6,1772.1,5.7792]
[1745578566847,0.31219076,1772.5,1772.1,5.7792]
[1745578567448,0.31219076,1772.5,1772.1,11.422198]
[1745578568463,0.31219076,1772.5,1772.1,13.12873346]
[1745578570276,0.31219076,1772.5,1772.1,7.48573546]
[1745578570479,0.31219076,1772.4,1772.1,7.48573546]
[1745578570983,0.31219076,1772.4,1771.9,1.37074942]
[1745578570984,0.8071,1772.3,1771.9,1.37074942]
[1745578571142,0.8071,1772.3,1771.8,10.66979575]
[1745578571334,5.80532188,1772.2,1771.8,5.026]
[1745578571540,1.14359076,1772.1,1771.8,5.026]
[1745578572364,0.31219076,1772.0,1771.7,5.64427186]
[1745578572541,0.31219076,1772.0,1771.7,5.64427013]
[1745578572866,0.31219076,1772.0,1771.8,5.64396681]
[1745578573075,1.14359076,1772.1,1771.8,5.64396681]
[1745578573379,1.14359076,1772.1,1771.7,8.54254391]
[1745578573582,0.8314,1772.1,1771.8,5.64383684]
[1745578573754,0.8314,1772.1,1771.7,8.54251779]
[1745578574783,1.14377746,1772.1,1771.7,8.54251779]
[1745578576044,1.14377746,1772.1,1771.7,14.18662053]
[1745578576353,1.14377746,1772.1,1771.7,2.89844833]
[1745578576875,1.14377746,1772.1,1771.7,8.54273986]
[1745578577077,1.14377746,1772.1,1771.2,3.42489643]
[1745578577078,0.7723,1771.7,1771.3,0.8051]
[1745578577298,0.7723,1771.7,1771.4,5.64504809]
[1745578577445,0.7723,1771.9,1771.5,5.64475144]
[1745578577643,1.08467746,1771.9,1771.6,5.64445335]
[1745578578143,1.08467746,1771.9,1771.6,6.26948456]
[1745578578344,0.7723,1771.9,1771.6,6.26948456]
[1745578578656,0.7723,1771.9,1771.6,0.62503121]
[1745578578874,0.7723,1771.9,1771.6,6.26944973]
[1745578579084,0.7723,1771.9,1771.6,7.09674973]
[1745578580304,0.31186918,1771.9,1771.7,0.58797049]
[1745578581107,6.57912188,1772.0,1771.7,0.58797049]
[1745578582404,6.57912188,1772.0,1771.6,0.62503121]
[1745578582709,6.57912188,1772.0,1771.6,6.26946042]
[1745578585718,6.57912188,1772.0,1771.6,0.62503121]
[1745578586505,6.57912188,1772.0,1771.6,6.26961565]
[1745578586682,6.57912188,1772.0,1771.7,5.64420733]
[1745578586884,6.57912188,1772.0,1771.7,6.83554211]
[1745578587114,5.80532188,1772.0,1771.8,5.64369154]
[1745578587423,5.80532188,1772.4,1771.9,0.73617908]
[1745578587614,5.80532188,1772.4,1771.9,5.64351566]
[1745578587775,5.80532188,1772.4,1772.0,5.64332235]
[1745578587977,11.44750663,1772.4,1771.9,5.64365615]
[1745578588178,0.7967,1772.3,1771.9,6.85204489]
[1745578588477,4.53287908,1772.3,1771.7,1.9630823]
[1745578588703,6.4402243,1772.0,1771.3,6.41716391]
[1745578588908,5.80532188,1771.9,1771.5,5.64470509]
[1745578589278,5.80532188,1771.9,1771.6,5.64459471]
[1745578589478,5.80532188,1771.9,1771.6,11.28900143]
[1745578589677,5.80532188,1771.9,1771.6,5.64457726]
[1745578589909,5.80532188,1771.9,1771.5,11.2895608]
[1745578590218,5.80532188,1771.9,1771.6,6.77354511]
[1745578591280,5.80532188,1771.9,1771.6,12.41780303]
[1745578591476,5.80532188,1771.9,1771.7,5.64427166]
[1745578591891,5.80532188,1771.9,1771.6,6.77335973]
[1745578592190,5.80532188,1771.9,1771.7,5.64419557]
[1745578592710,5.80532188,1771.9,1771.6,5.64440365]
[1745578592914,5.80532188,1771.9,1771.7,5.64425014]
[1745578593204,5.80532188,1771.9,1771.6,5.64439956]
[1745578594020,5.64461503,1771.6,1770.8,0.8242]
[1745578594221,0.7995,1771.3,1770.8,7.11832359]
[1745578594581,4.11191465,1771.3,1770.8,7.11832359]
[1745578594804,4.54506877,1771.3,1770.8,7.11832359]
[1745578595616,10.35039065,1771.3,1770.8,7.11832359]
[1745578595823,10.35039065,1771.3,1770.9,5.64673669]
[1745578596290,7.037976,1771.3,1771.0,5.64639435]
[1745578596491,7.037976,1771.3,1770.9,6.92313379]
[1745578596915,7.037976,1771.3,1771.0,5.64629259]
[1745578599085,7.037976,1771.3,1770.9,6.9231814]
[1745578599991,7.037976,1771.3,1770.9,12.56980151]
[1745578600329,7.037976,1771.3,1770.9,6.92312305]
[1745578603422,7.037976,1771.3,1770.9,12.56977709]
[1745578603724,7.037976,1771.3,1771.0,5.64649944]
[1745578604223,7.037976,1771.3,1770.9,6.92312305]
[1745578604397,7.037976,1771.3,1771.0,5.64643517]
[1745578604594,7.037976,1771.3,1771.0,6.33872898]
[1745578606489,7.037976,1771.3,1771.1,5.64619547]
[1745578606700,7.037976,1771.3,1771.0,0.69229381]
[1745578607024,6.60482188,1771.3,1771.1,5.64602622]
[1745578608207,5.80532188,1771.3,1771.1,5.64602622]
[1745578608410,5.80532188,1771.3,1771.1,6.84449242]
[1745578609833,5.80532188,1771.3,1771.1,1.1984662]
[1745578610206,6.61872188,1771.6,1771.1,0.8113]
[1745578610401,6.61872188,1771.6,1771.3,5.64546482]
[1745578610798,5.80532188,1771.6,1771.4,5.64524686]
[1745578611431,5.80532188,1771.6,1771.3,5.64546482]
[1745578611645,5.80532188,1771.6,1771.3,6.77458145]
[1745578612045,5.80532188,1771.6,1771.4,5.64515723]
[1745578612344,5.80532188,1771.6,1771.3,6.77444657]
[1745578612545,5.80532188,1771.6,1771.4,5.64516483]
[1745578613100,5.80532188,1771.6,1771.4,6.42146483]
[1745578613342,5.80532188,1771.6,1771.5,6.28708015]
[1745578614619,5.80532188,1771.8,1771.6,5.6445151]
[1745578615019,0.7565,1771.9,1771.6,5.64433557]
[1745578615240,0.7565,1771.9,1771.6,11.85324045]
[1745578615532,0.7565,1771.9,1771.6,11.85315439]
[1745578616037,0.7565,1771.9,1771.7,5.64429079]
[1745578616549,0.7565,1771.9,1771.4,6.42136036]
[1745578616749,0.8297,1771.7,1771.2,10.66963974]
[1745578616904,7.7021012,1771.7,1771.2,10.66963974]
[1745578617105,0.8297,1771.6,1771.2,5.024]
[1745578617408,6.78629853,1771.6,1771.2,5.024]
[1745578617604,1.14158454,1771.6,1771.2,5.024]
[1745578617808,6.78620024,1771.6,1771.2,5.024]
[1745578618010,0.31188454,1771.5,1771.2,5.024]
[1745578618206,6.11720642,1771.5,1771.2,5.024]
[1745578618437,6.11720642,1771.5,1771.2,10.66971646]
[1745578619060,5.80532188,1771.5,1771.2,10.66971646]
[1745578620051,5.80532188,1771.5,1771.2,5.024]
[1745578620260,6.45954844,1771.4,1770.9,2.09180294]
[1745578620460,6.45954844,1771.4,1770.8,5.64692808]
[1745578620461,6.38152752,1771.4,1770.8,5.64692808]
[1745578620645,6.61952188,1771.3,1770.9,5.64659933]
[1745578620830,6.61952188,1771.3,1771.0,5.64649017]
[1745578621444,6.61952188,1771.3,1770.9,5.64659933]
[1745578621618,6.61952188,1771.3,1770.9,1.12936114]
[1745578621815,6.61952188,1771.3,1770.8,5.64701205]
[1745578622153,0.7822,1771.1,1770.6,5.64761831]
[1745578622347,1.09450942,1771.1,1770.6,5.64757838]
[1745578622553,1.09450942,1771.1,1770.8,5.64704154]
[1745578623116,1.09450942,1771.1,1770.7,5.64734202]
[1745578623315,1.09450942,1771.1,1770.7,12.42412077]
[1745578624056,1.09450942,1771.1,1770.7,6.77677875]
[1745578624355,1.09450942,1771.1,1770.7,5.64728089]
[1745578624555,1.09450942,1771.1,1770.8,5.64702343]
[1745578624753,1.09450942,1771.1,1770.9,5.6467394]
[1745578624963,1.09450942,1771.1,1770.8,5.64702442]
[1745578625259,1.09450942,1771.1,1770.8,5.64697872]
[1745578625457,0.7822,1771.1,1770.8,6.77640693]
[1745578625631,0.7822,1771.1,1770.8,6.77636764]
[1745578626161,0.7822,1771.1,1770.9,5.64676908]
[1745578626316,6.61112188,1771.3,1771.0,5.64638491]
[1745578626517,6.61112188,1771.3,1770.9,5.64664946]
[1745578626839,6.61112188,1771.3,1770.9,5.64683074]
[1745578627345,0.31235269,1771.2,1770.9,5.64683074]
[1745578627557,0.31235269,1771.2,1770.9,6.88915143]
[1745578629420,0.31235269,1771.2,1770.9,6.88895946]
[1745578629621,0.31235269,1771.2,1771.0,5.64634384]
[1745578629828,0.31235269,1771.2,1771.1,5.64620857]
[1745578630032,0.31235269,1771.2,1771.0,11.29267029]
[1745578630235,0.31235269,1771.2,1771.0,6.89981409]
[1745578630422,0.31235269,1771.2,1771.0,5.64631499]
[1745578630647,6.61112188,1771.3,1771.0,5.64631499]
[1745578631232,5.80532188,1771.4,1771.1,5.64619085]
[1745578632335,5.80532188,1771.4,1771.1,5.64616171]
[1745578633856,0.31249751,1771.3,1771.1,5.64616171]
[1745578634056,0.31249751,1771.3,1771.1,6.85503362]
[1745578634758,5.80532188,1771.4,1771.1,6.85503362]
[1745578634926,5.80532188,1771.4,1771.1,5.64616171]
[1745578635575,5.80532188,1771.4,1771.0,6.44253358]
[1745578635775,0.8079,1771.3,1770.8,11.46793299]
[1745578635973,0.8079,1771.3,1770.9,5.64669364]
[1745578636180,1.12045672,1771.3,1771.0,5.64635429]
[1745578636380,1.12045672,1771.3,1771.1,5.64611303]
[1745578636539,1.12045672,1771.3,1771.0,5.64635429]
[1745578636928,1.12045672,1771.3,1771.0,12.92416484]
[1745578637134,1.12045672,1771.3,1771.0,7.27781055]
[1745578637431,1.12045672,1771.3,1771.1,5.64618361]
[1745578638173,1.12045672,1771.3,1771.1,5.6460976]
[1745578638401,0.31255672,1771.3,1771.2,5.64588979]
[1745578638527,0.31255672,1771.3,1771.2,6.77508853]
[1745578638861,0.31255672,1771.6,1771.4,5.6450449]
[1745578639266,0.31255672,1771.6,1771.4,5.64521447]
[1745578639465,6.63652188,1771.7,1771.4,5.64521447]
[1745578639651,6.63652188,1771.7,1771.3,16.31279986]
[1745578639853,6.63652188,1771.7,1771.3,18.05699972]
[1745578640181,5.80532188,1771.7,1771.5,5.64478773]
[1745578641182,5.80532188,1771.7,1771.4,6.46135549]
[1745578641551,5.80532188,1771.7,1771.4,12.10644148]
[1745578641770,5.80532188,1771.7,1771.4,6.46135549]
[1745578643995,6.57222188,1771.8,1771.4,6.46135549]
[1745578644395,0.31256682,1771.7,1771.4,6.46135549]
[1745578644800,0.31256682,1771.7,1771.6,5.64461503]
[1745578644969,0.31256682,1771.7,1771.5,5.64467167]
[1745578645169,5.80532188,1771.8,1771.6,5.64461503]
[1745578648708,5.80532188,1771.8,1771.6,5.64441419]
[1745578649112,5.80532188,1771.8,1771.6,11.2888885]
[1745578649317,5.80532188,1771.8,1771.7,5.64429643]
[1745578649812,1.24185104,1772.0,1771.7,5.64429643]
[1745578650392,1.24185104,1772.0,1771.6,6.77330304]
[1745578650710,1.55463587,1772.0,1771.6,11.28881007]
[1745578651320,1.55463587,1772.0,1771.6,5.64439588]
[1745578652098,1.55463587,1772.0,1771.4,2.70359358]
[1745578652099,0.31278483,1772.0,1771.8,5.64386776]
[1745578653108,0.8225,1771.9,1771.5,5.6448149]
[1745578653485,0.7694,1771.8,1771.3,16.31270454]
[1745578653695,6.57472188,1771.8,1771.3,18.13567234]
[1745578654016,0.31278483,1771.7,1771.4,5.64517215]
[1745578654523,0.31278483,1771.7,1771.4,11.29020369]
[1745578654879,0.31278483,1771.7,1771.4,11.29008898]
[1745578655416,0.31278483,1771.7,1771.4,11.29016506]